[Event "CZE-ch Youth G10-G12-G14 2022"]
[Site "Luhacovice"]
[Date "2022.03.17"]
[Round "7.31"]
[White "Mikesova, Lenka"]
[Black "Zadrapova, Amalie"]
[Result "0-1"]
[ECO "B98"]
[WhiteElo "1364"]
[BlackElo "1582"]
[Annotator "NA"]
[PlyCount "74"]
[EventDate "2022.03.12"]
[EventType "swiss"]
[EventCountry "CZE"]
[SourceTitle "playchess.com"]
[Source "ChessBase"]
[SourceQuality "1"]
[TimeControl "40/5400+30:1800+30"]

1. e4 {[%emt 0:00:02]} c5 {[%emt 0:00:36]} 2. Nf3 {[%emt 0:00:11]} d6 {[%emt 0:00:00]} 3. d4 {[%emt 0:00:15]} cxd4 {[%emt 0:00:00]} 4. Nxd4 {[%emt 0:00:19]} Nf6 {[%emt 0:00:00]} 5. Nc3 {[%emt 0:00:11]} a6 {[%emt 0:00:00]} 6. Bg5 {[%emt 0:01:01]} e6 {[%emt 0:00:07]} 7. f4 {[%emt 0:01:05]} Be7 {[%emt 0:02:27]} 8. Qf3 {[%emt 0:02:38]} Qc7 {[%emt 0:02:37]} 9. O-O-O {[%emt 0:02:51]} O-O {[%emt 0:07:30]} 10. g4 {[%emt 0:03:06]} b5 {[%emt 0:05:25]} 11. Bxf6 {[%emt 0:04:03]} Bxf6 {[%emt 0:00:37]} 12. g5 {[%emt 0:01:08]} Bxd4 {[%emt 0:02:30]} 13. Rxd4 {[%emt 0:00:35]} Nc6 {[%emt 0:01:03]} 14. Rd1 {[%emt 0:01:42]} Bb7 {[%emt 0:02:57]} 15. h4 {[%emt 0:02:58]} b4 {[%emt 0:03:30]} 16. Nb1 {[%emt 0:04:48]} Rac8 {[%emt 0:02:05]} 17. Bd3 {[%emt 0:02:29]} Nd4 {[%emt 0:02:00]} 18. Qf2 {[%emt 0:06:36]} Qc5 {[%emt 0:03:10]} 19. Kd2 {[%emt 0:08:16]} f5 {[%emt 0:25:15]} 20. c3 {[%emt 0:07:23]} bxc3+ {[%emt 0:04:30]} 21. bxc3 {[%emt 0:04:53]} Nb3+ {[%emt 0:01:13]} 22. Ke2 {[%emt 0:02:29]} Qxf2+ {[%emt 0:00:53]} 23. Kxf2 {[%emt 0:00:13]} Nc5 {[%emt 0:00:30]} 24. Ke3 {[%emt 0:04:01]} Nxd3 {[%emt 0:01:02]} 25. Rxd3 {[%emt 0:00:16]} Bxe4 {[%emt 0:00:08]} 26. Rhd1 {[%emt 0:01:14]} Bxd3 {[%emt 0:00:09]} 27. Rxd3 {[%emt 0:00:11]} d5 {[%emt 0:02:04]} 28. Nd2 {[%emt 0:00:34]} Rc7 {[%emt 0:01:09]} 29. h5 {[%emt 0:02:33]} Kf7 {[%emt 0:01:12]} 30. Kd4 {[%emt 0:01:40]} Rfc8 {[%emt 0:01:27]} 31. g6+ {[%emt 0:02:50]} hxg6 {[%emt 0:00:15]} 32. hxg6+ {[%emt 0:00:08]} Kxg6 {[%emt 0:01:28]} 33. Rg3+ {[%emt 0:00:10]} Kf6 {[%emt 0:00:35]} 34. a3 {[%emt 0:01:15]} Rc6 {[%emt 0:02:03]} 35. a4 {[%emt 0:00:37]} a5 {[%emt 0:01:01]} 36. c4 {[%emt 0:01:31]} dxc4 {[%emt 0:00:48]} 37. Kc3 {[%emt 0:00:45]} Rd6 {[%emt 0:01:28]} 0-1

[Event "CZE-ch Youth G10-G12-G14 2022"]
[Site "Luhacovice"]
[Date "2022.03.17"]
[Round "7.32"]
[White "Sikorova, Jana"]
[Black "Kavanova, Anezka"]
[Result "1-0"]
[ECO "D66"]
[WhiteElo "1427"]
[BlackElo "1089"]
[Annotator "NA"]
[PlyCount "78"]
[EventDate "2022.03.12"]
[EventType "swiss"]
[EventCountry "CZE"]
[SourceTitle "playchess.com"]
[Source "ChessBase"]
[SourceQuality "1"]
[TimeControl "40/5400+30:1800+30"]

1. d4 {[%emt 0:00:03]} Nf6 {[%emt 0:00:06]} 2. Nf3 {[%emt 0:00:08]} e6 {[%emt 0:00:06]} 3. c4 {[%emt 0:00:32]} d5 {[%emt 0:00:05]} 4. Nc3 {[%emt 0:00:32]} c6 {[%emt 0:00:09]} 5. Bg5 {[%emt 0:00:20]} Be7 {[%emt 0:00:10]} 6. e3 {[%emt 0:00:14]} Nbd7 {[%emt 0:00:28]} 7. Bd3 {[%emt 0:00:15]} O-O {[%emt 0:00:09]} 8. Rc1 {[%emt 0:00:40]} dxc4 {[%emt 0:02:21]} 9. Bxc4 {[%emt 0:00:09]} b5 {[%emt 0:00:07]} 10. Bd3 {[%emt 0:00:06]} Qc7 {[%emt 0:00:45]} 11. O-O {[%emt 0:00:45]} Re8 {[%emt 0:00:43]} 12. Bxf6 {[%emt 0:03:24]} Nxf6 {[%emt 0:00:55]} 13. Ne4 {[%emt 0:01:37]} a6 {[%emt 0:06:20]} 14. Qc2 {[%emt 0:01:27]} Nd5 {[%emt 0:00:30]} 15. a3 {[%emt 0:10:55]} Bb7 {[%emt 0:05:21]} 16. Ne5 {[%emt 0:01:43]} Rac8 {[%emt 0:02:48]} 17. Nc5 {[%emt 0:05:47]} Bxc5 {[%emt 0:02:47]} 18. Qxc5 {[%emt 0:01:55]} Qe7 {[%emt 0:01:21]} 19. Be4 {[%emt 0:12:41]} f6 {[%emt 0:05:42]} 20. Nd3 {[%emt 0:00:47]} e5 {[%emt 0:09:16]} 21. dxe5 {[%emt 0:06:13]} fxe5 {[%emt 0:02:03]} 22. Qxe7 {[%emt 0:01:31]} Rxe7 {[%emt 0:01:42]} 23. Nc5 {[%emt 0:00:47]} Nf6 {[%emt 0:08:52]} 24. Bf5 {[%emt 0:02:12]} Rd8 {[%emt 0:06:04]} 25. Nxb7 {[%emt 0:02:26]} Rxb7 {[%emt 0:00:12]} 26. Rxc6 {[%emt 0:01:53]} a5 {[%emt 0:00:11]} 27. Re6 {[%emt 0:06:24]} Rd5 {[%emt 0:06:56]} 28. Rxf6 {[%emt 0:01:30]} gxf6 {[%emt 0:00:16]} 29. Be6+ {[%emt 0:00:31]} Kg7 {[%emt 0:00:21]} 30. Bxd5 {[%emt 0:00:08]} Rb8 {[%emt 0:00:16]} 31. Rc1 {[%emt 0:00:57]} h5 {[%emt 0:02:39]} 32. Rc7+ {[%emt 0:00:40]} Kh6 {[%emt 0:00:13]} 33. Be4 {[%emt 0:00:52]} b4 {[%emt 0:00:42]} 34. h4 {[%emt 0:00:17]} Rh8 {[%emt 0:00:26]} 35. axb4 {[%emt 0:00:52]} axb4 {[%emt 0:00:15]} 36. Kf1 {[%emt 0:00:11]} b3 {[%emt 0:01:10]} 37. Ke2 {[%emt 0:00:37]} f5 {[%emt 0:00:16]} 38. Bxf5 {[%emt 0:00:11]} e4 {[%emt 0:00:13]} 39. Bxe4 {[%emt 0:00:07]} Rh7 {[%emt 0:00:22]} 1-0

[Event "CZE-ch Youth G10-G12-G14 2022"]
[Site "Luhacovice"]
[Date "2022.03.17"]
[Round "7.33"]
[White "Dorazilova, Kristyna"]
[Black "Hetfleischova, Elen"]
[Result "1-0"]
[ECO "C78"]
[WhiteElo "1240"]
[BlackElo "1363"]
[Annotator "NA"]
[PlyCount "43"]
[EventDate "2022.03.12"]
[EventType "swiss"]
[EventCountry "CZE"]
[SourceTitle "playchess.com"]
[Source "ChessBase"]
[SourceQuality "1"]
[TimeControl "40/5400+30:1800+30"]

1. e4 {[%emt 0:00:06]} e5 {[%emt 0:00:21]} 2. Nf3 {[%emt 0:00:08]} Nc6 {[%emt 0:00:15]} 3. Bb5 {[%emt 0:00:10]} a6 {[%emt 0:00:40]} 4. Ba4 {[%emt 0:00:07]} Bc5 {[%emt 0:00:41]} 5. O-O {[%emt 0:00:20]} Nf6 {[%emt 0:00:37]} 6. Re1 {[%emt 0:00:39]} d6 {[%emt 0:00:57]} 7. h3 {[%emt 0:00:08]} Be6 {[%emt 0:00:27]} 8. c3 {[%emt 0:00:30]} b5 {[%emt 0:02:02]} 9. Bc2 {[%emt 0:00:10]} Bb6 {[%emt 0:04:10]} 10. d4 {[%emt 0:00:34]} Bd7 {[%emt 0:01:50]} 11. Be3 {[%emt 0:09:32]} b4 {[%emt 0:07:37]} 12. dxe5 {[%emt 0:04:26]} bxc3 {[%emt 0:03:07]} 13. Nxc3 {[%emt 0:00:22]} Nxe5 {[%emt 0:01:09]} 14. Bxb6 {[%emt 0:01:18]} cxb6 {[%emt 0:00:18]} 15. Bb3 {[%emt 0:07:48]} O-O {[%emt 0:01:45]} 16. Re3 {[%emt 0:11:22]} Qe7 {[%emt 0:01:05]} 17. Rc1 {[%emt 0:08:52]} Rac8 {[%emt 0:01:52]} 18. Qd4 {[%emt 0:02:10]} b5 {[%emt 0:01:33]} 19. Nxe5 {[%emt 0:03:21]} dxe5 {[%emt 0:01:21]} 20. Qd1 {[%emt 0:00:57]} Rfd8 {[%emt 0:00:40]} 21. Qe1 {[%emt 0:05:03]} Bc6 {[%emt 0:09:10]} 22. Kh2 {[%emt 0:09:50]} 1-0

[Event "CZE-ch Youth G10-G12-G14 2022"]
[Site "Luhacovice"]
[Date "2022.03.17"]
[Round "7.34"]
[White "Brezikova, Beata"]
[Black "Archlebova, Stela"]
[Result "1-0"]
[ECO "C58"]
[WhiteElo "1266"]
[BlackElo "1121"]
[Annotator "NA"]
[PlyCount "43"]
[EventDate "2022.03.12"]
[EventType "swiss"]
[EventCountry "CZE"]
[SourceTitle "playchess.com"]
[Source "ChessBase"]
[SourceQuality "1"]
[TimeControl "40/5400+30:1800+30"]

1. e4 {[%emt 0:00:02]} e5 {[%emt 0:00:33]} 2. Nf3 {[%emt 0:00:05]} Nc6 {[%emt 0:00:36]} 3. Bc4 {[%emt 0:00:05]} Nf6 {[%emt 0:00:57]} 4. Ng5 {[%emt 0:00:10]} d5 {[%emt 0:07:21]} 5. exd5 {[%emt 0:00:12]} Na5 {[%emt 0:01:19]} 6. Bb5+ {[%emt 0:00:37]} c6 {[%emt 0:01:28]} 7. dxc6 {[%emt 0:00:09]} Nxc6 {[%emt 0:02:10]} 8. Bc4 {[%emt 0:11:33]} Be6 {[%emt 0:45:20]} 9. Bxe6 {[%emt 0:10:31]} fxe6 {[%emt 0:00:31]} 10. Nxe6 {[%emt 0:01:02]} Qd7 {[%emt 0:02:19]} 11. Nxf8 {[%emt 0:04:51]} Rxf8 {[%emt 0:00:28]} 12. f3 {[%emt 0:07:29]} Qd4 {[%emt 0:00:52]} 13. Qe2 {[%emt 0:05:54]} O-O-O {[%emt 0:03:03]} 14. Qe3 {[%emt 0:09:50]} Nb4 {[%emt 0:06:44]} 15. Na3 {[%emt 0:04:13]} Qxe3+ {[%emt 0:02:58]} 16. dxe3 {[%emt 0:00:29]} e4 {[%emt 0:00:51]} 17. Bd2 {[%emt 0:14:52]} Nc6 {[%emt 0:01:14]} 18. O-O-O {[%emt 0:06:16]} exf3 {[%emt 0:01:06]} 19. gxf3 {[%emt 0:04:11]} Nd7 {[%emt 0:02:14]} 20. Rhf1 {[%emt 0:06:20]} Nde5 {[%emt 0:00:30]} 21. f4 {[%emt 0:00:30]} Ng4 {[%emt 0:00:30]} 22. e4 {[%emt 0:00:30]} 1-0

[Event "CZE-ch Youth G10-G12-G14 2022"]
[Site "Luhacovice"]
[Date "2022.03.17"]
[Round "7.35"]
[White "Dominikova, Denisa"]
[Black "Stavova, Marketa"]
[Result "1-0"]
[ECO "C63"]
[WhiteElo "1254"]
[BlackElo "1146"]
[Annotator "NA"]
[PlyCount "55"]
[EventDate "2022.03.12"]
[EventType "swiss"]
[EventCountry "CZE"]
[SourceTitle "playchess.com"]
[Source "ChessBase"]
[SourceQuality "1"]
[TimeControl "40/5400+30:1800+30"]

1. e4 {[%emt 0:00:04]} e5 {[%emt 0:00:17]} 2. Nf3 {[%emt 0:00:22]} Nc6 {[%emt 0:00:41]} 3. Bb5 {[%emt 0:00:49]} f5 {[%emt 0:00:47]} 4. Nc3 {[%emt 0:01:15]} Nf6 {[%emt 0:01:36]} 5. Qe2 {[%emt 0:01:18]} d6 {[%emt 0:01:45]} 6. exf5 {[%emt 0:03:28]} a6 {[%emt 0:01:17]} 7. Bxc6+ {[%emt 0:02:52]} bxc6 {[%emt 0:00:10]} 8. d4 {[%emt 0:02:19]} e4 {[%emt 0:06:41]} 9. Nxe4 {[%emt 0:05:13]} Nxe4 {[%emt 0:00:14]} 10. Bg5 {[%emt 0:03:13]} Qd7 {[%emt 0:04:01]} 11. Qxe4+ {[%emt 0:02:12]} Be7 {[%emt 0:01:21]} 12. O-O-O {[%emt 0:05:28]} Kd8 {[%emt 0:01:19]} 13. Bxe7+ {[%emt 0:02:50]} Qxe7 {[%emt 0:00:10]} 14. Qxc6 {[%emt 0:01:29]} Rb8 {[%emt 0:01:16]} 15. Rhe1 {[%emt 0:06:58]} Qf7 {[%emt 0:02:00]} 16. Qe4 {[%emt 0:04:27]} Bd7 {[%emt 0:06:07]} 17. b3 {[%emt 0:02:21]} c6 {[%emt 0:12:38]} 18. Ng5 {[%emt 0:04:28]} Qf6 {[%emt 0:00:54]} 19. Ne6+ {[%emt 0:01:50]} Bxe6 {[%emt 0:01:17]} 20. fxe6 {[%emt 0:02:01]} h6 {[%emt 0:00:55]} 21. Qxc6 {[%emt 0:02:18]} Qe7 {[%emt 0:00:34]} 22. Qxa6 {[%emt 0:01:55]} Rc8 {[%emt 0:03:31]} 23. Qa5+ {[%emt 0:04:29]} Rc7 {[%emt 0:00:45]} 24. Rd3 {[%emt 0:01:52]} Re8 {[%emt 0:01:08]} 25. Rc3 {[%emt 0:01:07]} Qg5+ {[%emt 0:00:48]} 26. Qxg5+ {[%emt 0:01:22]} hxg5 {[%emt 0:00:08]} 27. Rxc7 {[%emt 0:00:39]} Kxc7 {[%emt 0:00:09]} 28. d5 {[%emt 0:00:47]} 1-0

[Event "CZE-ch Youth G10-G12-G14 2022"]
[Site "Luhacovice"]
[Date "2022.03.17"]
[Round "7.36"]
[White "Cinkova, Vicky"]
[Black "Reznickova, Sibyla"]
[Result "1/2-1/2"]
[ECO "C50"]
[WhiteElo "1317"]
[BlackElo "1304"]
[Annotator "NA"]
[PlyCount "72"]
[EventDate "2022.03.12"]
[EventType "swiss"]
[EventCountry "CZE"]
[SourceTitle "playchess.com"]
[Source "ChessBase"]
[SourceQuality "1"]
[TimeControl "40/5400+30:1800+30"]

1. e4 {[%emt 0:01:54]} e5 {[%emt 0:00:22]} 2. Nf3 {[%emt 0:00:16]} Nc6 {[%emt 0:00:17]} 3. Nc3 {[%emt 0:00:30]} Bc5 {[%emt 0:02:26]} 4. Bc4 {[%emt 0:01:59]} Nf6 {[%emt 0:01:12]} 5. d3 {[%emt 0:00:52]} d6 {[%emt 0:01:01]} 6. O-O {[%emt 0:02:13]} Bg4 {[%emt 0:01:20]} 7. Be3 {[%emt 0:04:04]} Bb6 {[%emt 0:02:08]} 8. Nd5 {[%emt 0:11:12]} Nxd5 {[%emt 0:02:21]} 9. Bxd5 {[%emt 0:00:30]} Qf6 {[%emt 0:03:42]} 10. h3 {[%emt 0:05:25]} Bxf3 {[%emt 0:05:58]} 11. Qxf3 {[%emt 0:00:39]} Qxf3 {[%emt 0:02:01]} 12. Bxc6+ {[%emt 0:00:31]} bxc6 {[%emt 0:01:30]} 13. gxf3 {[%emt 0:01:18]} d5 {[%emt 0:02:12]} 14. Bd2 {[%emt 0:14:49]} g6 {[%emt 0:05:48]} 15. Rae1 {[%emt 0:04:19]} d4 {[%emt 0:05:42]} 16. f4 {[%emt 0:03:31]} exf4 {[%emt 0:03:29]} 17. Bxf4 {[%emt 0:00:59]} g5 {[%emt 0:00:53]} 18. Bg3 {[%emt 0:04:18]} h5 {[%emt 0:10:26]} 19. Be5 {[%emt 0:06:51]} Rg8 {[%emt 0:03:31]} 20. Bf6 {[%emt 0:02:20]} Rg6 {[%emt 0:09:47]} 21. e5 {[%emt 0:00:33]} Kd7 {[%emt 0:02:25]} 22. Kh1 {[%emt 0:04:18]} Rag8 {[%emt 0:04:26]} 23. Re4 {[%emt 0:04:26]} g4 {[%emt 0:07:18]} 24. h4 {[%emt 0:04:31]} g3 {[%emt 0:02:30]} 25. Bg5 {[%emt 0:04:33]} g2+ {[%emt 0:06:43]} 26. Kxg2 {[%emt 0:00:40]} f6 {[%emt 0:00:46]} 27. exf6 {[%emt 0:01:02]} Rxf6 {[%emt 0:00:10]} 28. Kh2 {[%emt 0:00:38]} Rf3 {[%emt 0:01:30]} 29. Re7+ {[%emt 0:00:38]} Kc8 {[%emt 0:01:08]} 30. Rh7 {[%emt 0:00:22]} Bc5 {[%emt 0:01:50]} 31. Kg2 {[%emt 0:07:40]} Rf5 {[%emt 0:05:20]} 32. f4 {[%emt 0:01:23]} Bd6 {[%emt 0:00:20]} 33. Kh1 {[%emt 0:03:24]} Rgf8 {[%emt 0:01:43]} 34. Be7 {[%emt 0:03:38]} Rxf4 {[%emt 0:03:04]} 35. Rxf4 {[%emt 0:00:30]} Rxf4 {[%emt 0:00:07]} 36. Bxd6 {[%emt 0:00:05]} Rxh4+ {[%emt 0:00:14]} 1/2-1/2

[Event "CZE-ch Youth G10-G12-G14 2022"]
[Site "Luhacovice"]
[Date "2022.03.17"]
[Round "7.38"]
[White "Kaplanova, Dominika"]
[Black "Foldynova Julie"]
[Result "0-1"]
[ECO "C28"]
[WhiteElo "1269"]
[BlackElo "1000"]
[Annotator "NA"]
[PlyCount "89"]
[EventDate "2022.03.12"]
[EventType "swiss"]
[EventCountry "CZE"]
[SourceTitle "playchess.com"]
[Source "ChessBase"]
[SourceQuality "1"]
[TimeControl "40/5400+30:1800+30"]

1. e4 {[%emt 0:00:18]} e5 {[%emt 0:00:04]} 2. Bc4 {[%emt 0:00:06]} Nf6 {[%emt 0:01:14]} 3. d3 {[%emt 0:01:54]} Nc6 {[%emt 0:00:39]} 4. Nc3 {[%emt 0:00:47]} Na5 {[%emt 0:01:09]} 5. a3 {[%emt 0:02:20]} Nxc4 {[%emt 0:00:07]} 6. dxc4 {[%emt 0:00:05]} Bc5 {[%emt 0:02:10]} 7. Nf3 {[%emt 0:03:54]} d6 {[%emt 0:02:01]} 8. Bg5 {[%emt 0:11:52]} h6 {[%emt 0:02:41]} 9. Bh4 {[%emt 0:00:08]} g5 {[%emt 0:00:42]} 10. Bg3 {[%emt 0:00:08]} Be6 {[%emt 0:11:40]} 11. Qe2 {[%emt 0:13:43]} Qe7 {[%emt 0:04:49]} 12. Nd5 {[%emt 0:02:52]} Bxd5 {[%emt 0:01:36]} 13. cxd5 {[%emt 0:00:08]} a6 {[%emt 0:02:07]} 14. O-O-O {[%emt 0:08:52]} Qd7 {[%emt 0:07:11]} 15. Nd2 {[%emt 0:06:34]} Qb5 {[%emt 0:09:16]} 16. Qxb5+ {[%emt 0:05:27]} axb5 {[%emt 0:00:20]} 17. c3 {[%emt 0:06:38]} Bb6 {[%emt 0:06:49]} 18. f3 {[%emt 0:05:51]} c5 {[%emt 0:02:38]} 19. Bf2 {[%emt 0:03:37]} Ke7 {[%emt 0:03:40]} 20. c4 {[%emt 0:08:08]} b4 {[%emt 0:01:26]} 21. axb4 {[%emt 0:00:29]} Nd7 {[%emt 0:03:47]} 22. bxc5 {[%emt 0:00:31]} Bxc5 {[%emt 0:01:34]} 23. Bxc5 {[%emt 0:02:30]} Nxc5 {[%emt 0:00:50]} 24. Kc2 {[%emt 0:00:59]} Rhc8 {[%emt 0:01:27]} 25. Ra1 {[%emt 0:01:29]} Rab8 {[%emt 0:02:01]} 26. b4 {[%emt 0:01:02]} Nd7 {[%emt 0:00:35]} 27. Kb3 {[%emt 0:01:01]} b5 {[%emt 0:02:56]} 28. Ra7 {[%emt 0:01:46]} Kd8 {[%emt 0:01:28]} 29. Rc1 {[%emt 0:01:11]} bxc4+ {[%emt 0:01:23]} 30. Rxc4 {[%emt 0:00:53]} Nb6 {[%emt 0:03:55]} 31. Rxc8+ {[%emt 0:00:26]} Rxc8 {[%emt 0:00:08]} 32. Rb7 {[%emt 0:01:35]} Nd7 {[%emt 0:00:15]} 33. Nc4 {[%emt 0:00:35]} Rb8 {[%emt 0:01:19]} 34. Rxb8+ {[%emt 0:00:29]} Nxb8 {[%emt 0:00:06]} 35. Nxd6 {[%emt 0:00:05]} Ke7 {[%emt 0:01:11]} 36. Nf5+ {[%emt 0:00:09]} Kf6 {[%emt 0:00:25]} 37. Nxh6 {[%emt 0:00:11]} Kg6 {[%emt 0:00:43]} 38. Ng4 {[%emt 0:00:27]} Nd7 {[%emt 0:01:08]} 39. Ne3 {[%emt 0:01:59]} Kh5 {[%emt 0:02:08]} 40. g3 {[%emt 0:00:36]} f6 {[%emt 0:02:29]} 41. Kc4 {[%emt 0:30:42]} Nb6+ {[%emt 0:30:46]} 42. Kc5 {[%emt 0:00:18]} Na4+ {[%emt 0:00:23]} 43. Kc6 {[%emt 0:00:20]} Nc3 {[%emt 0:00:41]} 44. d6 {[%emt 0:00:27]} Ne2 {[%emt 0:00:56]} 45. d7 {[%emt 0:02:28]} 0-1

[Event "CZE-ch Youth G10-G12-G14 2022"]
[Site "Luhacovice"]
[Date "2022.03.17"]
[Round "7.39"]
[White "Vacekova Anita"]
[Black "Filipova, Vanesa"]
[Result "1-0"]
[ECO "C01"]
[WhiteElo "1000"]
[BlackElo "1146"]
[Annotator "NA RC"]
[PlyCount "109"]
[EventDate "2022.03.12"]
[EventType "swiss"]
[EventCountry "CZE"]
[SourceTitle "playchess.com"]
[Source "ChessBase"]
[SourceQuality "1"]
[TimeControl "40/5400+30:1800+30"]

1. e4 {[%emt 0:00:03]} e6 {[%emt 0:00:18]} 2. d4 {[%emt 0:00:08]} d5 {[%emt 0:00:13]} 3. exd5 {[%emt 0:00:05]} exd5 {[%emt 0:00:26]} 4. Bd3 {[%emt 0:00:04]} Bd6 {[%emt 0:00:28]} 5. Nf3 {[%emt 0:01:03]} Bg4 {[%emt 0:01:35]} 6. Be3 {[%emt 0:01:37]} Nf6 {[%emt 0:00:42]} 7. Nbd2 {[%emt 0:00:42]} Nc6 {[%emt 0:00:39]} 8. c3 {[%emt 0:00:51]} Qe7 {[%emt 0:03:12]} 9. Qb3 {[%emt 0:05:41]} Rb8 {[%emt 0:11:25]} 10. O-O-O {[%emt 0:07:49]} O-O {[%emt 0:01:14]} 11. Bg5 {[%emt 0:02:01]} b5 {[%emt 0:05:21]} 12. Bxf6 {[%emt 0:04:42]} Qxf6 {[%emt 0:00:21]} 13. Qxd5 {[%emt 0:00:45]} Bf4 {[%emt 0:12:11]} 14. Kc2 {[%emt 0:28:19]} b4 {[%emt 0:01:26]} 15. Ne4 {[%emt 0:03:08]} Qh6 {[%emt 0:09:38]} 16. Nc5 {[%emt 0:08:41]} Rfe8 {[%emt 0:07:10]} 17. Rde1 {[%emt 0:08:00]} bxc3 {[%emt 0:05:38]} 18. Rxe8+ {[%emt 0:04:11]} Rxe8 {[%emt 0:00:27]} 19. bxc3 {[%emt 0:00:27]} Bh5 {[%emt 0:16:48]} 20. Bb5 {[%emt 0:03:53]} Bg6+ {[%emt 0:01:56]} 21. Kb3 {[%emt 0:01:38]} Na5+ {[%emt 0:03:24]} 22. Kb4 {[%emt 0:00:54]} c6 {[%emt 0:00:23]} 23. Bxc6 {[%emt 0:02:50]} Nxc6+ {[%emt 0:00:32]} 24. Qxc6 {[%emt 0:01:23]} Rb8+ {[%emt 0:00:12]} 25. Ka5 {[%emt 0:01:48]} a6 {[%emt 0:03:51]} 26. Re1 {[%emt 0:06:32]} f6 {[%emt 0:01:55]} 27. Nxa6 {[%emt 0:01:05]} Qh5+ {[%emt 0:00:20]} 28. Qc5 {[%emt 0:00:38]} Ra8 {[%emt 0:03:02]} 29. Qxh5 {[%emt 0:01:09]} Bxh5 {[%emt 0:00:19]} 30. Nh4 {[%emt 0:01:53]} Bc7+ {[%emt 0:00:36]} 31. Kb5 {[%emt 0:00:27]} g5 {[%emt 0:01:28]} 32. Nf5 {[%emt 0:00:37]} Re8 {[%emt 0:02:22]} 33. Rxe8+ {[%emt 0:00:32]} Bxe8+ {[%emt 0:00:09]} 34. Kc5 {[%emt 0:00:23]} Bxh2 {[%emt 0:01:01]} 35. g3 {[%emt 0:00:34]} Bg1 {[%emt 0:00:13]} 36. Nd6 {[%emt 0:01:04]} Bd7 {[%emt 0:00:32]} 37. Ne4 {[%emt 0:00:23]} Kg7 {[%emt 0:00:34]} 38. Nb4 {[%emt 0:00:27]} f5 {[%emt 0:00:20]} 39. Nxg5 {[%emt 0:00:25]} h5 {[%emt 0:00:52]} 40. Nd3 {[%emt 0:00:40]} h4 {[%emt 0:02:48]} 41. gxh4 {[%emt 0:30:41]} Bh2 {[%emt 0:30:34]} 42. Nf3 {[%emt 0:00:27]} Bc7 {[%emt 0:00:45]} 43. Nfe5 {[%emt 0:01:01]} Ba4 {[%emt 0:00:56]} 44. f4 {[%emt 0:00:53]} Kh6 {[%emt 0:02:32]} 45. d5 {[%emt 0:00:00]} Kh5 {[%emt 0:00:00]} 46. d6 {[%emt 0:00:00]} Ba5 {[%emt 0:00:00]} 47. d7 {[%emt 0:00:00]} Bc7 {[%emt 0:00:00]} 48. Nb2 {[%emt 0:00:00]} Bxd7 {[%emt 0:00:00]} 49. Nxd7 {[%emt 0:00:00]} Bxf4 {[%emt 0:00:00]} 50. Nf6+ {[%emt 0:00:00]} Kxh4 {[%emt 0:00:00]} 51. Nd5 {[%emt 0:00:00]} Be5 {[%emt 0:00:00]} 52. Nd3 {[%emt 0:00:00]} Bg7 {[%emt 0:00:00]} 53. a4 {[%emt 0:00:00]} Bf8+ {[%emt 0:00:00]} 54. Kc6 {[%emt 0:00:00]} Kg5 {[%emt 0:00:00]} 55. a5 {[%emt 0:00:00]} 1-0

[Event "CZE-ch Youth G10-G12-G14 2022"]
[Site "Luhacovice"]
[Date "2022.03.17"]
[Round "7.40"]
[White "Koval, Anna"]
[Black "Lackova, Ludmila"]
[Result "0-1"]
[ECO "C42"]
[WhiteElo "1278"]
[BlackElo "1167"]
[Annotator "NA"]
[PlyCount "120"]
[EventDate "2022.03.12"]
[EventType "swiss"]
[EventCountry "CZE"]
[SourceTitle "playchess.com"]
[Source "ChessBase"]
[SourceQuality "1"]
[TimeControl "40/5400+30:1800+30"]

1. e4 {[%emt 0:00:03]} e5 {[%emt 0:00:06]} 2. Nf3 {[%emt 0:00:04]} Nf6 {[%emt 0:00:05]} 3. Nxe5 {[%emt 0:00:07]} d6 {[%emt 0:00:35]} 4. Nf3 {[%emt 0:00:10]} Nxe4 {[%emt 0:00:10]} 5. Bc4 {[%emt 0:00:40]} d5 {[%emt 0:00:52]} 6. Bb3 {[%emt 0:00:16]} Be7 {[%emt 0:02:02]} 7. d3 {[%emt 0:00:14]} Nf6 {[%emt 0:00:29]} 8. Bg5 {[%emt 0:00:11]} O-O {[%emt 0:00:40]} 9. d4 {[%emt 0:00:12]} Bg4 {[%emt 0:11:26]} 10. h3 {[%emt 0:00:31]} Be6 {[%emt 0:15:48]} 11. O-O {[%emt 0:00:46]} Re8 {[%emt 0:01:22]} 12. Re1 {[%emt 0:00:41]} Ne4 {[%emt 0:01:53]} 13. Bxe7 {[%emt 0:00:50]} Qxe7 {[%emt 0:04:25]} 14. Nbd2 {[%emt 0:01:19]} Nf6 {[%emt 0:10:21]} 15. c4 {[%emt 0:00:52]} Qd8 {[%emt 0:04:50]} 16. Ng5 {[%emt 0:01:56]} dxc4 {[%emt 0:03:40]} 17. Nxc4 {[%emt 0:00:27]} Bxc4 {[%emt 0:02:53]} 18. Rxe8+ {[%emt 0:00:21]} Nxe8 {[%emt 0:00:40]} 19. Qh5 {[%emt 0:02:23]} Nf6 {[%emt 0:04:34]} 20. Qf3 {[%emt 0:00:29]} Bxb3 {[%emt 0:02:57]} 21. Qxb3 {[%emt 0:00:27]} Qd5 {[%emt 0:02:27]} 22. Qe3 {[%emt 0:01:14]} Nc6 {[%emt 0:00:48]} 23. Nf3 {[%emt 0:00:44]} Re8 {[%emt 0:01:30]} 24. Qc3 {[%emt 0:00:47]} h6 {[%emt 0:01:10]} 25. Rd1 {[%emt 0:00:40]} Qxa2 {[%emt 0:01:39]} 26. Ne5 {[%emt 0:00:48]} Qa4 {[%emt 0:01:34]} 27. b3 {[%emt 0:01:56]} Qb4 {[%emt 0:01:38]} 28. Qd3 {[%emt 0:01:53]} Qd6 {[%emt 0:00:58]} 29. Nc4 {[%emt 0:01:15]} Qd8 {[%emt 0:02:36]} 30. Kh2 {[%emt 0:01:33]} Ne4 {[%emt 0:01:45]} 31. Qc2 {[%emt 0:01:52]} Nd6 {[%emt 0:01:05]} 32. d5 {[%emt 0:00:35]} Ne7 {[%emt 0:01:11]} 33. Ne3 {[%emt 0:01:22]} Ng6 {[%emt 0:00:50]} 34. b4 {[%emt 0:01:33]} Qd7 {[%emt 0:00:39]} 35. Qc5 {[%emt 0:02:31]} b6 {[%emt 0:01:08]} 36. Qc3 {[%emt 0:01:09]} Ne4 {[%emt 0:00:20]} 37. Qb2 {[%emt 0:00:31]} Qe7 {[%emt 0:01:33]} 38. Qc2 {[%emt 0:01:35]} Nd6 {[%emt 0:01:18]} 39. Kg1 {[%emt 0:00:40]} Rc8 {[%emt 0:01:01]} 40. Kh1 {[%emt 0:01:29]} Qe4 {[%emt 0:01:30]} 41. Qc3 {[%emt 0:31:34]} Qf4 {[%emt 0:31:18]} 42. Rf1 {[%emt 0:01:01]} Qe5 {[%emt 0:03:09]} 43. Qa3 {[%emt 0:00:53]} Ra8 {[%emt 0:00:43]} 44. Qc1 {[%emt 0:01:09]} Qe7 {[%emt 0:01:10]} 45. Qc6 {[%emt 0:00:40]} Rd8 {[%emt 0:02:52]} 46. Qa4 {[%emt 0:00:43]} Nc8 {[%emt 0:01:09]} 47. Qa1 {[%emt 0:01:35]} Qd7 {[%emt 0:05:47]} 48. g4 {[%emt 0:01:06]} Qe8 {[%emt 0:00:00]} 49. Nf5 {[%emt 0:00:00]} f6 {[%emt 0:00:00]} 50. Re1 {[%emt 0:00:00]} Qd7 {[%emt 0:00:00]} 51. Rd1 {[%emt 0:00:00]} Ne5 {[%emt 0:00:00]} 52. Kg2 {[%emt 0:00:00]} Qb5 {[%emt 0:00:00]} 53. f4 {[%emt 0:00:00]} Qe2+ {[%emt 0:00:00]} 54. Kh1 {[%emt 0:00:00]} Nf3 {[%emt 0:00:00]} 55. Rd2 {[%emt 0:00:00]} Qxd2 {[%emt 0:00:00]} 56. Qg1 {[%emt 0:00:00]} Nxg1 {[%emt 0:00:00]} 57. Kxg1 {[%emt 0:00:00]} Re8 {[%emt 0:00:00]} 58. Ng3 {[%emt 0:00:00]} Re1+ {[%emt 0:00:00]} 59. Nf1 {[%emt 0:00:00]} Qxf4 {[%emt 0:00:00]} 60. Kh1 {[%emt 0:00:00]} Rxf1+ {[%emt 0:00:00]} 0-1